Workbook

Sheet métré détaillé base
X2: Mct | Y2: QP
C3: Désignation du poste métré | D3: Date | F3: =TODAY() -> 2018-09-25 | K3: Unité | M3: M2 | X3: M2 | Y3: Fft
D4: Métreur | X4: M3
D5: Quantité prévue | K5: Type de marché | M5: QP | X5: Pces
X6: Kg
X7: Fft
B8: Lot 1 : | C8: Terrassement | X8: Hrs
B9: N° | C9: Désignation des ouvrages | D9: Elément | E9: Nombre | F9: Dimensions | I9: Quantités | K9: Unité | L9: Quantités | N9: Unité | Q9: Prix unitaire | S9: Prix total en €
F10: Long | G10: Larg | H10: Haut | I10: + | J10: - | L10: Partielles | M10: Totales | Q10: Prix | R10: Unité
B11: =B8+0.01 -> 1.01 | M11: =SUM(I11:I14)-SUM(J11:J14) -> 0.06 | N11: M2 | Q11: 5 | R11: =N11 -> M2 | S11: =M11*Q11 -> 0.30 € | U11: =M11 -> 0.06 | V11: =N11 -> M2
B12: =B11 -> 1.01 | E12: 1 | F12: 0.20 | G12: 0.30 | I12: =IF(E12>0,PRODUCT(E12:H12),"") -> 0.060 | J12: =IF(E12<0,PRODUCT(E12:H12),"") ->  | K12: =IF(E12="","",N11) -> M2 | L12: =IF(E12="","",SUM(I12:J12)) -> 0.06 | N12: =N11 -> M2
B13: =B12 -> 1.01 | I13: =IF(E13>0,PRODUCT(E13:H13),"") ->  | J13: =IF(E13<0,PRODUCT(E13:H13),"") ->  | K13: =IF(E13="","",N12) ->  | L13: =IF(E13="","",SUM(I13:J13)) ->  | N13: =N12 -> M2
B14: =B13 -> 1.01

Sheet métré détaillé présentation
X2: Mct | Y2: QP
C3: Désignation du poste métré | D3: Date | F3: =TODAY() -> 2018-09-25 | K3: Unité | M3: M2 | X3: M2 | Y3: Fft
D4: Métreur | X4: M3
D5: Quantité prévue | K5: Type de marché | M5: QP | X5: Pces
X6: Kg
X7: Fft
B8: Lot 1 : | C8: Terrassement | X8: Hrs
B9: N° | C9: Désignation des ouvrages | D9: Elément | E9: Nombre | F9: Dimensions | I9: Quantités | K9: Unité | L9: Quantités | N9: Unité | Q9: Prix unitaire | S9: Prix total en €
F10: Long | G10: Larg | H10: Haut | I10: + | J10: - | L10: Partielles | M10: Totales | Q10: Prix | R10: Unité
B11: =B8+0.01 -> 1.01 | M11: =SUM(I11:I23)-SUM(J11:J23) -> 1.44 | N11: M2 | Q11: 5 | R11: =N11 -> M2 | S11: =M11*Q11 -> 7.20 € | U11: =M11 -> 1.44 | V11: =N11 -> M2
B12: =B11 -> 1.01 | E12: 1 | F12: 0.20 | G12: 0.30 | I12: =IF(E12>0,PRODUCT(E12:H12),"") -> 0.060 | J12: =IF(E12<0,PRODUCT(E12:H12),"") ->  | K12: =IF(E12="","",N11) -> M2 | L12: =IF(E12="","",SUM(I12:J12)) -> 0.06 | N12: =N11 -> M2
B13: 1.01 | E13: 2 | F13: 0.30 | G13: 0.20 | I13: 0.120 | K13: M2 | L13: 0.12 | N13: M2
B14: 1.01 | E14: 1 | F14: 0.30 | G14: 0.20 | I14: 0.060 | K14: M2 | L14: 0.06 | N14: M2
B15: 1.01 | E15: 1 | F15: 0.30 | G15: 0.20 | I15: 0.060 | K15: M2 | L15: 0.06 | N15: M2
B16: 1.01 | E16: 3 | F16: 0.30 | G16: 0.20 | I16: 0.180 | K16: M2 | L16: 0.18 | N16: M2
B17: 1.01 | E17: -2 | F17: 0.30 | G17: 0.20 | J17: -0.120 | K17: M2 | L17: -0.12 | N17: M2
B18: 1.01 | E18: 6 | F18: 0.30 | G18: 0.20 | I18: 0.360 | K18: M2 | L18: 0.36 | N18: M2
B19: 1.01 | E19: 3 | F19: 0.30 | G19: 0.20 | I19: 0.180 | K19: M2 | L19: 0.18 | N19: M2
B20: 1.01 | E20: 2 | F20: 0.30 | G20: 0.20 | I20: 0.120 | K20: M2 | L20: 0.12 | N20: M2
B21: 1.01 | E21: 3 | F21: 0.30 | G21: 0.20 | I21: 0.180 | K21: M2 | L21: 0.18 | N21: M2
B22: 1.01 | N22: M2
B23: 1.01
B24: =B21+0.01 -> 1.02 | M24: =SUM(I24:I33)-SUM(J24:J33) -> 2.92 | N24: M3 | Q24: 5 | R24: =N24 -> M3 | S24: =M24*Q24 -> 14.61 € | U24: =M24 -> 2.92 | V24: =N24 -> M3
B25: =B24 -> 1.02 | E25: 2 | F25: 0.20 | G25: 0.30 | H25: 1.20 | I25: =IF(E25>0,PRODUCT(E25:H25),"") -> 0.144 | J25: =IF(E25<0,PRODUCT(E25:H25),"") ->  | K25: =IF(E25="","",N24) -> M3 | L25: =IF(E25="","",SUM(I25:J25)) -> 0.14 | N25: =N24 -> M3
B26: =B25 -> 1.02 | E26: 2 | F26: 0.30 | G26: 0.20 | H26: 1.60 | I26: 0.192 | K26: =IF(E26="","",N25) -> M3 | L26: 0.19 | N26: =N25 -> M3
B27: 1.02 | E27: 6 | F27: 0.30 | G27: 0.20 | H27: 1.80 | I27: 0.648 | K27: =IF(E27="","",N26) -> M3 | L27: 0.65 | N27: =N26 -> M3
B28: 1.02 | E28: -4 | F28: 0.30 | G28: 0.50 | H28: 1.80 | J28: -1.080 | K28: =IF(E28="","",N27) -> M3 | L28: -1.08 | N28: =N27 -> M3
B29: 1.02 | E29: -2 | F29: 0.30 | G29: 0.20 | H29: 6.00 | J29: -0.720 | K29: M3 | L29: -0.72 | N29: M3
B30: 1.02 | E30: 2 | F30: 0.30 | G30: 0.20 | H30: 0.70 | I30: 0.084 | K30: =IF(E30="","",N29) -> M3 | L30: 0.08 | N30: M3
B31: 1.02 | E31: 3 | F31: 0.30 | G31: 0.20 | H31: 0.30 | I31: 0.054 | K31: =IF(E31="","",N30) -> M3 | L31: 0.05 | N31: M3
B32: 1.02 | K32: =IF(E32="","",N31) ->  | N32: M3
B33: 1.02
B34: =B31+0.01 -> 1.03 | M34: =SUM(I34:I40)-SUM(J34:J40) -> 2.60 | N34: Mct | Q34: 5 | R34: =N34 -> Mct | S34: =M34*Q34 -> 13.00 € | U34: =M34 -> 2.60 | V34: =N34 -> Mct
B35: =B34 -> 1.03 | E35: 1 | F35: 0.20 | I35: =IF(E35>0,PRODUCT(E35:H35),"") -> 0.200 | J35: =IF(E35<0,PRODUCT(E35:H35),"") ->  | K35: =IF(E35="","",N34) -> Mct | L35: =IF(E35="","",SUM(I35:J35)) -> 0.20 | N35: =N34 -> Mct
B36: =B35 -> 1.03 | E36: 3 | F36: 0.30 | I36: =IF(E36>0,PRODUCT(E36:H36),"") -> 0.900 | J36: =IF(E36<0,PRODUCT(E36:H36),"") ->  | K36: =IF(E36="","",N35) -> Mct | L36: =IF(E36="","",SUM(I36:J36)) -> 0.90 | N36: =N35 -> Mct
B37: 1.03 | E37: 2 | F37: 0.30 | I37: =IF(E37>0,PRODUCT(E37:H37),"") -> 0.600 | J37: =IF(E37<0,PRODUCT(E37:H37),"") ->  | K37: Mct | L37: =IF(E37="","",SUM(I37:J37)) -> 0.60 | N37: Mct
B38: 1.03 | E38: 3 | F38: 0.30 | I38: =IF(E38>0,PRODUCT(E38:H38),"") -> 0.900 | J38: =IF(E38<0,PRODUCT(E38:H38),"") ->  | K38: Mct | L38: =IF(E38="","",SUM(I38:J38)) -> 0.90 | N38: Mct
B39: 1.03 | I39: =IF(E39>0,PRODUCT(E39:H39),"") ->  | J39: =IF(E39<0,PRODUCT(E39:H39),"") ->  | K39: =IF(E39="","",N38) ->  | L39: =IF(E39="","",SUM(I39:J39)) ->  | N39: Mct
B40: 1.03

Sheet Feuil1
